[Event "Titled Tuesday Blitz May 25 2021"]
[White "Vakhlamov, Igor L."]
[Black "Kollars, Dmitrij"]
[WhiteFideId "24126748"]
[BlackFideId "12909572"]
[WhiteElo "2405"]
[BlackElo "2576"]
[Result "0-1"]
[Round "03"]
[TimeControl "180+1"]
[Date "2021.05.25"]
[WhiteClock "0:00:02"]
[BlackClock "0:00:59"]

1. e4 {[%clk 0:03:00]}  c6 {[%clk 0:02:57]} 2. Nc3 {[%clk 0:03:00]}  d5 {[%clk 0:02:58]} 3. Nf3 {[%clk 0:03:00]}  dxe4 {[%clk 0:02:58]} 4. Nxe4 {[%clk 0:03:01]}  Nf6 {[%clk 0:02:58]} 5. Qe2 {[%clk 0:03:02]}  Nxe4 {[%clk 0:02:56]} 6. Qxe4 {[%clk 0:03:02]}  Nd7 {[%clk 0:02:57]} 7. Bc4 {[%clk 0:03:02]}  Nf6 {[%clk 0:02:56]} 8. Ne5 {[%clk 0:03:02]}  e6 {[%clk 0:02:57]} 9. Qe2 {[%clk 0:03:01]}  b5 {[%clk 0:02:57]} 10. Bd3 {[%clk 0:02:38]}  Qc7 {[%clk 0:02:51]} 11. O-O {[%clk 0:02:37]}  Bd6 {[%clk 0:02:48]} 12. f4 {[%clk 0:02:37]}  O-O {[%clk 0:02:45]} 13. b3 {[%clk 0:02:36]}  a6 {[%clk 0:02:34]} 14. Bb2 {[%clk 0:02:35]}  Bb7 {[%clk 0:02:29]} 15. Ng4 {[%clk 0:02:23]}  Nxg4 {[%clk 0:02:22]} 16. Qxg4 {[%clk 0:02:24]}  f5 {[%clk 0:02:22]} 17. Qg3 {[%clk 0:02:15]}  c5 {[%clk 0:02:18]} 18. Rae1 {[%clk 0:02:11]}  Rae8 {[%clk 0:02:17]} 19. c4 {[%clk 0:02:04]}  Bc6 {[%clk 0:02:01]} 20. Re2 {[%clk 0:01:59]}  Rf7 {[%clk 0:01:58]} 21. h3 {[%clk 0:01:43]}  b4 {[%clk 0:01:55]} 22. Bc2 {[%clk 0:01:36]}  Rfe7 {[%clk 0:01:53]} 23. d4 {[%clk 0:01:34]}  cxd4 {[%clk 0:01:24]} 24. Bxd4 {[%clk 0:01:34]}  Qb8 {[%clk 0:01:19]} 25. Rxe6 {[%clk 0:01:30]}  g6 {[%clk 0:01:12]} 26. Rxg6+ {[%clk 0:01:07]}  hxg6 {[%clk 0:01:09]} 27. Qxg6+ {[%clk 0:01:08]}  Kf8 {[%clk 0:01:08]} 28. Qh6+ {[%clk 0:01:07]}  Kg8 {[%clk 0:01:00]} 29. Qh8+ {[%clk 0:00:50]}  Kf7 {[%clk 0:01:00]} 30. Qh7+ {[%clk 0:00:46]}  Kf8 {[%clk 0:00:58]} 31. Qh8+ {[%clk 0:00:36]}  Kf7 {[%clk 0:00:58]} 32. Qg7+ {[%clk 0:00:32]}  Ke6 {[%clk 0:00:57]} 33. Bxf5+ {[%clk 0:00:03]}  Kxf5 {[%clk 0:00:58]} 34. Qg4+ {[%clk 0:00:03]}  Ke4 {[%clk 0:00:58]} 35. f5+ {[%clk 0:00:02]}  Bf4 {[%clk 0:00:59]} 0-1


[Site "https://www.chess.com"]

[Event "Titled Tuesday Blitz May 25 2021"]
[White "Van Foreest, Jorden"]
[Black "Djordjevic, Vuk"]
[WhiteFideId "1039784"]
[BlackFideId "902098"]
[WhiteElo "2622"]
[BlackElo "2463"]
[Result "1-0"]
[Round "03"]
[TimeControl "180+1"]
[Date "2021.05.25"]
[WhiteClock "0:00:15"]
[BlackClock "0:00:01"]

1. b3 {[%clk 0:03:00]}  e5 {[%clk 0:03:00]} 2. Bb2 {[%clk 0:02:59]}  Nc6 {[%clk 0:03:00]} 3. c4 {[%clk 0:02:59]}  d6 {[%clk 0:02:54]} 4. e3 {[%clk 0:02:58]}  g6 {[%clk 0:02:54]} 5. d3 {[%clk 0:02:55]}  Bg7 {[%clk 0:02:53]} 6. Nd2 {[%clk 0:02:56]}  Nge7 {[%clk 0:02:43]} 7. Ngf3 {[%clk 0:02:51]}  O-O {[%clk 0:02:43]} 8. a3 {[%clk 0:02:50]}  a5 {[%clk 0:02:41]} 9. Qc2 {[%clk 0:02:50]}  h6 {[%clk 0:02:38]} 10. Be2 {[%clk 0:02:40]}  g5 {[%clk 0:02:37]} 11. h3 {[%clk 0:02:38]}  f5 {[%clk 0:02:36]} 12. Bc3 {[%clk 0:02:32]}  Be6 {[%clk 0:02:31]} 13. Rb1 {[%clk 0:02:27]}  Ng6 {[%clk 0:02:23]} 14. g3 {[%clk 0:02:14]}  d5 {[%clk 0:02:02]} 15. cxd5 {[%clk 0:02:08]}  Bxd5 {[%clk 0:01:59]} 16. e4 {[%clk 0:02:05]}  Be6 {[%clk 0:01:44]} 17. exf5 {[%clk 0:01:49]}  Rxf5 {[%clk 0:01:36]} 18. Ne4 {[%clk 0:01:33]}  Qe7 {[%clk 0:01:35]} 19. b4 {[%clk 0:01:27]}  axb4 {[%clk 0:01:13]} 20. axb4 {[%clk 0:01:17]}  Bd5 {[%clk 0:00:45]} 21. O-O {[%clk 0:01:05]}  Raf8 {[%clk 0:00:24]} 22. b5 {[%clk 0:01:04]}  Nd4 {[%clk 0:00:04]} 23. Nxd4 {[%clk 0:01:03]}  exd4 {[%clk 0:00:05]} 24. Bb4 {[%clk 0:01:03]}  Qe5 {[%clk 0:00:05]} 25. Bxf8 {[%clk 0:01:02]}  Rxf8 {[%clk 0:00:06]} 26. Rbc1 {[%clk 0:00:58]}  c6 {[%clk 0:00:05]} 27. bxc6 {[%clk 0:00:57]}  bxc6 {[%clk 0:00:06]} 28. Rfe1 {[%clk 0:00:52]}  Ne7 {[%clk 0:00:06]} 29. Bg4 {[%clk 0:00:51]}  Ng6 {[%clk 0:00:05]} 30. Bd7 {[%clk 0:00:43]}  Kh7 {[%clk 0:00:04]} 31. Bxc6 {[%clk 0:00:41]}  Rc8 {[%clk 0:00:04]} 32. Qa4 {[%clk 0:00:35]}  Bxc6 {[%clk 0:00:02]} 33. Rxc6 {[%clk 0:00:35]}  Rxc6 {[%clk 0:00:02]} 34. Qxc6 {[%clk 0:00:35]}  Ne7 {[%clk 0:00:02]} 35. Qd7 {[%clk 0:00:33]}  Nd5 {[%clk 0:00:02]} 36. Qg4 {[%clk 0:00:24]}  Nb4 {[%clk 0:00:02]} 37. Qf3 {[%clk 0:00:22]}  Nc2 {[%clk 0:00:02]} 38. Rc1 {[%clk 0:00:22]}  Nb4 {[%clk 0:00:02]} 39. Rc5 {[%clk 0:00:22]}  Qe6 {[%clk 0:00:03]} 40. Rc7 {[%clk 0:00:21]}  Nd5 {[%clk 0:00:02]} 41. Rb7 {[%clk 0:00:20]}  Kg6 {[%clk 0:00:02]} 42. Nc5 {[%clk 0:00:16]}  Qd6 {[%clk 0:00:02]} 43. Qe4+ {[%clk 0:00:15]}  Kf6 {[%clk 0:00:01]} 44. Nd7+ {[%clk 0:00:15]} 1-0


[Site "https://www.chess.com"]

[Event "Titled Tuesday Blitz May 25 2021"]
[White "Visakh N R"]
[Black "CyberneticLion"]
[WhiteFideId "25012223"]
[WhiteElo "2823"]
[BlackElo "2578"]
[Result "1-0"]
[Round "03"]
[TimeControl "180+1"]
[Date "2021.05.25"]
[WhiteClock "0:00:34"]
[BlackClock "0:00:01"]

1. e4 {[%clk 0:03:00]}  e5 {[%clk 0:02:57]} 2. Nf3 {[%clk 0:03:00]}  Nc6 {[%clk 0:02:55]} 3. Bb5 {[%clk 0:03:01]}  Nf6 {[%clk 0:02:53]} 4. O-O {[%clk 0:02:57]}  Nxe4 {[%clk 0:02:48]} 5. Re1 {[%clk 0:02:50]}  Nd6 {[%clk 0:02:46]} 6. Nxe5 {[%clk 0:02:50]}  Be7 {[%clk 0:02:45]} 7. Bf1 {[%clk 0:02:49]}  Nxe5 {[%clk 0:02:43]} 8. Rxe5 {[%clk 0:02:48]}  O-O {[%clk 0:02:44]} 9. d4 {[%clk 0:02:47]}  Bf6 {[%clk 0:02:44]} 10. Re1 {[%clk 0:02:47]}  b6 {[%clk 0:02:44]} 11. c3 {[%clk 0:02:41]}  Bb7 {[%clk 0:02:43]} 12. Bf4 {[%clk 0:02:41]}  Nf5 {[%clk 0:02:41]} 13. Bd3 {[%clk 0:02:38]}  Nh4 {[%clk 0:02:29]} 14. Be4 {[%clk 0:02:15]}  Bxe4 {[%clk 0:02:26]} 15. Rxe4 {[%clk 0:02:16]}  d5 {[%clk 0:02:22]} 16. Re1 {[%clk 0:02:06]}  Ng6 {[%clk 0:02:12]} 17. Bg3 {[%clk 0:02:04]}  c6 {[%clk 0:02:12]} 18. Nd2 {[%clk 0:02:01]}  Qd7 {[%clk 0:02:04]} 19. h3 {[%clk 0:01:59]}  Rfe8 {[%clk 0:02:03]} 20. Qg4 {[%clk 0:01:59]}  Nf8 {[%clk 0:01:38]} 21. a4 {[%clk 0:01:48]}  a6 {[%clk 0:01:33]} 22. a5 {[%clk 0:01:36]}  b5 {[%clk 0:01:28]} 23. Nb3 {[%clk 0:01:33]}  Qxg4 {[%clk 0:01:17]} 24. hxg4 {[%clk 0:01:33]}  Ne6 {[%clk 0:01:18]} 25. Nc1 {[%clk 0:01:28]}  b4 {[%clk 0:01:08]} 26. Nd3 {[%clk 0:01:27]}  bxc3 {[%clk 0:01:07]} 27. bxc3 {[%clk 0:01:27]}  c5 {[%clk 0:01:02]} 28. Be5 {[%clk 0:01:17]}  cxd4 {[%clk 0:00:52]} 29. Bxf6 {[%clk 0:01:17]}  gxf6 {[%clk 0:00:53]} 30. Nb4 {[%clk 0:00:55]}  Red8 {[%clk 0:00:22]} 31. cxd4 {[%clk 0:00:43]}  Nxd4 {[%clk 0:00:22]} 32. Rad1 {[%clk 0:00:42]}  Ne6 {[%clk 0:00:16]} 33. Nxd5 {[%clk 0:00:36]}  Kg7 {[%clk 0:00:16]} 34. Ne3 {[%clk 0:00:35]}  Rxd1 {[%clk 0:00:15]} 35. Rxd1 {[%clk 0:00:36]}  Rd8 {[%clk 0:00:10]} 36. Rc1 {[%clk 0:00:35]}  Rb8 {[%clk 0:00:01]} 37. Rc6 {[%clk 0:00:34]}  Rb1+ {[%clk 0:00:01]} 38. Kh2 {[%clk 0:00:34]} 1-0


[Site "https://www.chess.com"]

[Event "Titled Tuesday Blitz May 25 2021"]
[White "Vogel, Roven"]
[Black "Sanchez Alvares, Kelvin Antonio"]
[WhiteFideId "12908088"]
[BlackFideId "3906680"]
[WhiteElo "2752"]
[BlackElo "2549"]
[Result "1/2-1/2"]
[Round "03"]
[TimeControl "180+1"]
[Date "2021.05.25"]
[WhiteClock "0:00:06"]
[BlackClock "0:00:28"]

1. d4 {[%clk 0:03:00]}  d5 {[%clk 0:02:59]} 2. c4 {[%clk 0:03:00]}  c6 {[%clk 0:02:59]} 3. Nf3 {[%clk 0:02:58]}  Nf6 {[%clk 0:02:59]} 4. Nbd2 {[%clk 0:02:58]}  Bf5 {[%clk 0:02:57]} 5. Nh4 {[%clk 0:02:57]}  Bg6 {[%clk 0:02:55]} 6. Qb3 {[%clk 0:02:57]}  Qb6 {[%clk 0:02:52]} 7. Qh3 {[%clk 0:02:56]}  Nbd7 {[%clk 0:02:29]} 8. Nxg6 {[%clk 0:02:55]}  fxg6 {[%clk 0:02:30]} 9. c5 {[%clk 0:02:49]}  Qc7 {[%clk 0:02:28]} 10. Qe6 {[%clk 0:02:46]}  Nb8 {[%clk 0:02:19]} 11. g3 {[%clk 0:02:43]}  Qd7 {[%clk 0:02:19]} 12. Bh3 {[%clk 0:02:42]}  Qxe6 {[%clk 0:02:19]} 13. Bxe6 {[%clk 0:02:42]}  Na6 {[%clk 0:02:19]} 14. Nf3 {[%clk 0:02:36]}  Nc7 {[%clk 0:02:17]} 15. Bh3 {[%clk 0:02:33]}  Nh5 {[%clk 0:02:17]} 16. Bd2 {[%clk 0:02:25]}  Na6 {[%clk 0:01:31]} 17. b4 {[%clk 0:02:12]}  h6 {[%clk 0:01:30]} 18. Rb1 {[%clk 0:02:09]}  Nc7 {[%clk 0:01:25]} 19. a4 {[%clk 0:02:04]}  a6 {[%clk 0:01:25]} 20. Nh4 {[%clk 0:01:55]}  Kf7 {[%clk 0:01:20]} 21. Nf3 {[%clk 0:01:55]}  g5 {[%clk 0:01:07]} 22. Ne5+ {[%clk 0:01:53]}  Kf6 {[%clk 0:01:08]} 23. e3 {[%clk 0:01:40]}  g6 {[%clk 0:01:07]} 24. Ke2 {[%clk 0:01:24]}  Kg7 {[%clk 0:01:06]} 25. f4 {[%clk 0:01:01]}  Nf6 {[%clk 0:01:05]} 26. Bg2 {[%clk 0:00:58]}  e6 {[%clk 0:01:00]} 27. h4 {[%clk 0:00:57]}  g4 {[%clk 0:00:59]} 28. Kd3 {[%clk 0:00:54]}  h5 {[%clk 0:00:59]} 29. Kc2 {[%clk 0:00:53]}  Be7 {[%clk 0:00:59]} 30. Ra1 {[%clk 0:00:46]}  Rhd8 {[%clk 0:00:56]} 31. Kd3 {[%clk 0:00:44]}  Nfe8 {[%clk 0:00:54]} 32. Rhb1 {[%clk 0:00:39]}  Bf6 {[%clk 0:00:54]} 33. Kc2 {[%clk 0:00:37]}  Kh7 {[%clk 0:00:53]} 34. Bf1 {[%clk 0:00:36]}  Ng7 {[%clk 0:00:52]} 35. Bd3 {[%clk 0:00:28]}  Nf5 {[%clk 0:00:51]} 36. Rg1 {[%clk 0:00:22]}  Bxe5 {[%clk 0:00:50]} 37. fxe5 {[%clk 0:00:20]}  Rf8 {[%clk 0:00:48]} 38. Kc3 {[%clk 0:00:20]}  Kg7 {[%clk 0:00:47]} 39. Raf1 {[%clk 0:00:19]}  Rf7 {[%clk 0:00:46]} 40. Rf4 {[%clk 0:00:19]}  Raf8 {[%clk 0:00:44]} 41. Kc2 {[%clk 0:00:19]}  Ne7 {[%clk 0:00:41]} 42. Kd1 {[%clk 0:00:16]}  Rxf4 {[%clk 0:00:39]} 43. exf4 {[%clk 0:00:16]}  Nf5 {[%clk 0:00:39]} 44. Bc3 {[%clk 0:00:16]}  Ra8 {[%clk 0:00:37]} 45. Ke2 {[%clk 0:00:16]}  Kf7 {[%clk 0:00:36]} 46. Kf2 {[%clk 0:00:16]}  Ke7 {[%clk 0:00:35]} 47. Ra1 {[%clk 0:00:15]}  Kd7 {[%clk 0:00:35]} 48. Bc2 {[%clk 0:00:15]}  Rf8 {[%clk 0:00:34]} 49. Rd1 {[%clk 0:00:15]}  Ra8 {[%clk 0:00:32]} 50. Be1 {[%clk 0:00:15]}  Rf8 {[%clk 0:00:32]} 51. Ke2 {[%clk 0:00:15]}  Rf7 {[%clk 0:00:31]} 52. Kd3 {[%clk 0:00:15]}  Rf8 {[%clk 0:00:32]} 53. Kc3 {[%clk 0:00:15]}  Ra8 {[%clk 0:00:32]} 54. Rd3 {[%clk 0:00:15]}  Ke7 {[%clk 0:00:31]} 55. Bf2 {[%clk 0:00:15]}  Kd7 {[%clk 0:00:31]} 56. Be1 {[%clk 0:00:16]}  Ke7 {[%clk 0:00:32]} 57. Kb3 {[%clk 0:00:16]}  Kd7 {[%clk 0:00:32]} 58. Kb2 {[%clk 0:00:16]}  Ke7 {[%clk 0:00:32]} 59. Bf2 {[%clk 0:00:16]}  Kd7 {[%clk 0:00:33]} 60. Rb3 {[%clk 0:00:16]}  Rb8 {[%clk 0:00:33]} 61. Bd3 {[%clk 0:00:16]}  Ra8 {[%clk 0:00:34]} 62. Kb1 {[%clk 0:00:16]}  Ra7 {[%clk 0:00:33]} 63. Rb2 {[%clk 0:00:16]}  Ra8 {[%clk 0:00:34]} 64. Rb3 {[%clk 0:00:14]}  Ra7 {[%clk 0:00:34]} 65. Ra3 {[%clk 0:00:13]}  Ra8 {[%clk 0:00:33]} 66. Kb2 {[%clk 0:00:13]}  Kd8 {[%clk 0:00:33]} 67. Kc3 {[%clk 0:00:04]}  Kd7 {[%clk 0:00:33]} 68. Ra2 {[%clk 0:00:04]}  Ke7 {[%clk 0:00:29]} 69. Ra1 {[%clk 0:00:04]}  Kd7 {[%clk 0:00:29]} 70. Ra2 {[%clk 0:00:05]}  Ra7 {[%clk 0:00:28]} 71. Bf1 {[%clk 0:00:05]}  Ra8 {[%clk 0:00:28]} 72. Be2 {[%clk 0:00:05]}  Kc8 {[%clk 0:00:28]} 73. Bf1 {[%clk 0:00:06]}  Kd7 {[%clk 0:00:28]} 74. Bd3 {[%clk 0:00:06]} 1/2-1/2


[Site "https://www.chess.com"]

[Event "Titled Tuesday Blitz May 25 2021"]
[White "Wagh Suyog"]
[Black "Indjic, Aleksandar"]
[WhiteFideId "25071688"]
[BlackFideId "911925"]
[WhiteElo "2219"]
[BlackElo "2643"]
[Result "0-1"]
[Round "03"]
[TimeControl "180+1"]
[Date "2021.05.25"]
[WhiteClock "0:00:08"]
[BlackClock "0:00:44"]

1. d4 {[%clk 0:02:57]}  Nf6 {[%clk 0:02:59]} 2. c4 {[%clk 0:02:57]}  e6 {[%clk 0:02:59]} 3. Nf3 {[%clk 0:02:57]}  d5 {[%clk 0:02:59]} 4. Nc3 {[%clk 0:02:56]}  Nbd7 {[%clk 0:02:59]} 5. cxd5 {[%clk 0:02:48]}  exd5 {[%clk 0:03:00]} 6. Bg5 {[%clk 0:02:47]}  c6 {[%clk 0:02:56]} 7. e3 {[%clk 0:02:47]}  Bd6 {[%clk 0:02:54]} 8. Bd3 {[%clk 0:02:47]}  Nf8 {[%clk 0:02:54]} 9. Bf4 {[%clk 0:02:41]}  Ng6 {[%clk 0:02:52]} 10. Bg3 {[%clk 0:02:40]}  O-O {[%clk 0:02:51]} 11. Qc2 {[%clk 0:02:38]}  Re8 {[%clk 0:02:48]} 12. O-O-O {[%clk 0:02:35]}  b5 {[%clk 0:02:48]} 13. Kb1 {[%clk 0:02:31]}  a5 {[%clk 0:02:27]} 14. Ne2 {[%clk 0:02:23]}  Bxg3 {[%clk 0:02:14]} 15. hxg3 {[%clk 0:02:23]}  Bd7 {[%clk 0:02:11]} 16. Nf4 {[%clk 0:02:16]}  Rc8 {[%clk 0:02:10]} 17. Ne5 {[%clk 0:02:13]}  Nxe5 {[%clk 0:02:06]} 18. dxe5 {[%clk 0:02:11]}  Rxe5 {[%clk 0:02:06]} 19. Bxh7+ {[%clk 0:02:10]}  Kf8 {[%clk 0:02:07]} 20. Bd3 {[%clk 0:01:51]}  Qb6 {[%clk 0:02:05]} 21. Ka1 {[%clk 0:01:47]}  c5 {[%clk 0:02:01]} 22. Be2 {[%clk 0:01:45]}  Bf5 {[%clk 0:01:53]} 23. Bd3 {[%clk 0:01:42]}  Bd7 {[%clk 0:01:45]} 24. Rh8+ {[%clk 0:01:41]}  Ke7 {[%clk 0:01:44]} 25. Rxc8 {[%clk 0:01:41]}  Bxc8 {[%clk 0:01:45]} 26. Be2 {[%clk 0:01:36]}  c4 {[%clk 0:01:42]} 27. Bf3 {[%clk 0:01:34]}  Be6 {[%clk 0:01:42]} 28. Qc3 {[%clk 0:01:31]}  Qc7 {[%clk 0:01:32]} 29. Qd4 {[%clk 0:01:28]}  b4 {[%clk 0:01:31]} 30. g4 {[%clk 0:01:26]}  a4 {[%clk 0:01:24]} 31. Nh3 {[%clk 0:01:05]}  Bxg4 {[%clk 0:01:08]} 32. Bxg4 {[%clk 0:00:56]}  Re4 {[%clk 0:01:08]} 33. Qd2 {[%clk 0:00:56]}  c3 {[%clk 0:01:08]} 34. bxc3 {[%clk 0:00:53]}  bxc3 {[%clk 0:01:09]} 35. Qc2 {[%clk 0:00:54]}  Rxg4 {[%clk 0:01:08]} 36. Nf4 {[%clk 0:00:53]}  g5 {[%clk 0:01:02]} 37. Ne2 {[%clk 0:00:33]}  Rxg2 {[%clk 0:00:57]} 38. Nd4 {[%clk 0:00:30]}  Ne4 {[%clk 0:00:46]} 39. Nf5+ {[%clk 0:00:27]}  Kf6 {[%clk 0:00:46]} 40. Nd4 {[%clk 0:00:11]}  Rxf2 {[%clk 0:00:44]} 41. Qd3 {[%clk 0:00:09]}  c2 {[%clk 0:00:44]} 42. Rf1 {[%clk 0:00:08]} 0-1


[Site "https://www.chess.com"]

[Event "Titled Tuesday Blitz May 25 2021"]
[White "Woodward, Andy"]
[Black "Dobrov, Vladimir"]
[WhiteFideId "30953499"]
[BlackFideId "4136594"]
[WhiteElo "2615"]
[BlackElo "2614"]
[Result "0-1"]
[Round "03"]
[TimeControl "180+1"]
[Date "2021.05.25"]
[WhiteClock "0:00:06"]
[BlackClock "0:00:42"]

1. d4 {[%clk 0:03:00]}  Nf6 {[%clk 0:02:59]} 2. c4 {[%clk 0:03:00]}  e6 {[%clk 0:02:59]} 3. Nc3 {[%clk 0:03:00]}  Bb4 {[%clk 0:02:59]} 4. Qc2 {[%clk 0:02:59]}  d5 {[%clk 0:02:59]} 5. cxd5 {[%clk 0:02:55]}  exd5 {[%clk 0:02:59]} 6. Bg5 {[%clk 0:02:55]}  h6 {[%clk 0:02:59]} 7. Bh4 {[%clk 0:02:53]}  g5 {[%clk 0:02:59]} 8. Bg3 {[%clk 0:02:50]}  Ne4 {[%clk 0:03:00]} 9. e3 {[%clk 0:02:48]}  h5 {[%clk 0:03:00]} 10. f3 {[%clk 0:02:38]}  Nxg3 {[%clk 0:02:59]} 11. hxg3 {[%clk 0:02:37]}  Qe7 {[%clk 0:03:00]} 12. O-O-O {[%clk 0:02:21]}  Qxe3+ {[%clk 0:02:58]} 13. Kb1 {[%clk 0:02:21]}  Bxc3 {[%clk 0:02:57]} 14. bxc3 {[%clk 0:02:21]}  Qe7 {[%clk 0:02:43]} 15. Nh3 {[%clk 0:02:18]}  Be6 {[%clk 0:02:27]} 16. Bd3 {[%clk 0:02:14]}  Nd7 {[%clk 0:02:12]} 17. Rhe1 {[%clk 0:02:05]}  O-O-O {[%clk 0:02:07]} 18. f4 {[%clk 0:02:05]}  h4 {[%clk 0:01:14]} 19. f5 {[%clk 0:02:04]}  hxg3 {[%clk 0:01:14]} 20. fxe6 {[%clk 0:02:04]}  fxe6 {[%clk 0:01:15]} 21. Bf5 {[%clk 0:01:51]}  Rh6 {[%clk 0:01:14]} 22. Bg4 {[%clk 0:01:45]}  Kb8 {[%clk 0:01:14]} 23. Re3 {[%clk 0:01:44]}  Nb6 {[%clk 0:01:13]} 24. Ka1 {[%clk 0:01:35]}  Nc4 {[%clk 0:01:13]} 25. Rxg3 {[%clk 0:01:31]}  e5 {[%clk 0:01:14]} 26. dxe5 {[%clk 0:01:31]}  Qxe5 {[%clk 0:01:14]} 27. Qf2 {[%clk 0:00:26]}  Rf6 {[%clk 0:01:02]} 28. Qe1 {[%clk 0:00:23]}  Qd6 {[%clk 0:00:56]} 29. Rgd3 {[%clk 0:00:23]}  Qa3 {[%clk 0:00:52]} 30. Rb1 {[%clk 0:00:20]}  Rb6 {[%clk 0:00:47]} 31. Nxg5 {[%clk 0:00:13]}  Rb2 {[%clk 0:00:44]} 32. Rxd5 {[%clk 0:00:06]}  Rxa2# {[%clk 0:00:42]} 0-1


[Site "https://www.chess.com"]

[Event "Titled Tuesday Blitz May 25 2021"]
[White "Xiong, Jeffery"]
[Black "Cardoso Cardoso, Jose Gabriel"]
[WhiteFideId "2047640"]
[BlackFideId "4430492"]
[WhiteElo "2724"]
[BlackElo "2343"]
[Result "1-0"]
[Round "03"]
[TimeControl "180+1"]
[Date "2021.05.25"]
[WhiteClock "0:00:59"]
[BlackClock "0:00:02"]

1. e4 {[%clk 0:03:00]}  c5 {[%clk 0:02:59]} 2. Nf3 {[%clk 0:03:00]}  d6 {[%clk 0:03:00]} 3. d4 {[%clk 0:03:00]}  cxd4 {[%clk 0:03:01]} 4. Qxd4 {[%clk 0:03:01]}  Nf6 {[%clk 0:03:00]} 5. Bb5+ {[%clk 0:02:57]}  Nc6 {[%clk 0:02:56]} 6. Bg5 {[%clk 0:02:54]}  e5 {[%clk 0:02:43]} 7. Qd3 {[%clk 0:02:50]}  a6 {[%clk 0:02:40]} 8. Bxc6+ {[%clk 0:02:46]}  bxc6 {[%clk 0:02:40]} 9. c4 {[%clk 0:02:47]}  Be7 {[%clk 0:02:39]} 10. Nc3 {[%clk 0:02:47]}  Nd7 {[%clk 0:02:38]} 11. Bxe7 {[%clk 0:02:47]}  Kxe7 {[%clk 0:02:37]} 12. Rd1 {[%clk 0:02:35]}  Nc5 {[%clk 0:02:27]} 13. Qe3 {[%clk 0:02:34]}  Qc7 {[%clk 0:01:13]} 14. Nxe5 {[%clk 0:02:32]}  Re8 {[%clk 0:01:13]} 15. Nd3 {[%clk 0:02:11]}  Nxd3+ {[%clk 0:01:03]} 16. Qxd3 {[%clk 0:02:12]}  Bg4 {[%clk 0:01:00]} 17. Rd2 {[%clk 0:02:11]}  Rad8 {[%clk 0:00:56]} 18. O-O {[%clk 0:01:56]}  Kf8 {[%clk 0:00:56]} 19. Qg3 {[%clk 0:01:56]}  Be6 {[%clk 0:00:55]} 20. c5 {[%clk 0:01:57]}  Qa7 {[%clk 0:00:30]} 21. cxd6 {[%clk 0:01:55]}  Rd7 {[%clk 0:00:28]} 22. Rc1 {[%clk 0:01:52]}  Red8 {[%clk 0:00:28]} 23. Na4 {[%clk 0:01:52]}  Qb8 {[%clk 0:00:21]} 24. Qa3 {[%clk 0:01:49]}  Kg8 {[%clk 0:00:19]} 25. e5 {[%clk 0:01:49]}  Rb7 {[%clk 0:00:09]} 26. b3 {[%clk 0:01:48]}  Rb5 {[%clk 0:00:08]} 27. Nc5 {[%clk 0:01:46]}  Bd5 {[%clk 0:00:09]} 28. Qxa6 {[%clk 0:01:39]}  h6 {[%clk 0:00:03]} 29. h3 {[%clk 0:01:39]}  Re8 {[%clk 0:00:03]} 30. d7 {[%clk 0:01:38]}  Rd8 {[%clk 0:00:02]} 31. a4 {[%clk 0:01:04]}  Rb6 {[%clk 0:00:02]} 32. Qa5 {[%clk 0:01:04]}  Qc7 {[%clk 0:00:01]} 33. b4 {[%clk 0:01:00]}  Rdb8 {[%clk 0:00:02]} 34. Na6 {[%clk 0:00:59]} 1-0


[Site "https://www.chess.com"]

[Event "Titled Tuesday Blitz May 25 2021"]
[White "mattcolins2025"]
[Black "Corrales Jimenez, Fidel"]
[BlackFideId "3506690"]
[WhiteElo "2452"]
[BlackElo "2555"]
[Result "0-1"]
[Round "03"]
[TimeControl "180+1"]
[Date "2021.05.25"]
[WhiteClock "0:00:06"]
[BlackClock "0:00:26"]

1. d4 {[%clk 0:03:00]}  Nf6 {[%clk 0:02:58]} 2. c4 {[%clk 0:03:01]}  g6 {[%clk 0:02:57]} 3. Nc3 {[%clk 0:03:00]}  d5 {[%clk 0:02:58]} 4. Nf3 {[%clk 0:03:00]}  Bg7 {[%clk 0:02:58]} 5. Qb3 {[%clk 0:03:00]}  dxc4 {[%clk 0:02:58]} 6. Qxc4 {[%clk 0:03:01]}  Nfd7 {[%clk 0:02:58]} 7. e4 {[%clk 0:03:00]}  Nb6 {[%clk 0:02:58]} 8. Qb3 {[%clk 0:02:51]}  Bg4 {[%clk 0:02:57]} 9. Be3 {[%clk 0:02:49]}  Bxf3 {[%clk 0:02:57]} 10. gxf3 {[%clk 0:02:49]}  O-O {[%clk 0:02:57]} 11. Rd1 {[%clk 0:02:49]}  Nc6 {[%clk 0:02:57]} 12. d5 {[%clk 0:02:46]}  Ne5 {[%clk 0:02:56]} 13. Be2 {[%clk 0:02:45]}  Qc8 {[%clk 0:02:57]} 14. h3 {[%clk 0:02:37]}  c6 {[%clk 0:02:42]} 15. f4 {[%clk 0:02:24]}  Ned7 {[%clk 0:02:42]} 16. dxc6 {[%clk 0:02:21]}  bxc6 {[%clk 0:02:42]} 17. Bg4 {[%clk 0:02:19]}  e6 {[%clk 0:02:42]} 18. f5 {[%clk 0:02:06]}  exf5 {[%clk 0:02:32]} 19. exf5 {[%clk 0:02:05]}  Qc7 {[%clk 0:02:32]} 20. fxg6 {[%clk 0:02:03]}  hxg6 {[%clk 0:02:33]} 21. Qc2 {[%clk 0:01:46]}  Ne5 {[%clk 0:02:31]} 22. Nb5 {[%clk 0:01:41]}  Qe7 {[%clk 0:02:27]} 23. Nd4 {[%clk 0:01:31]}  Nbc4 {[%clk 0:02:23]} 24. Nxc6 {[%clk 0:01:26]}  Qb7 {[%clk 0:02:23]} 25. Nxe5 {[%clk 0:01:20]}  Nxe3 {[%clk 0:02:14]} 26. Qc6 {[%clk 0:01:10]}  Qb4+ {[%clk 0:01:55]} 27. Ke2 {[%clk 0:00:56]}  Nxd1 {[%clk 0:01:40]} 28. Nd3 {[%clk 0:00:52]}  Rae8+ {[%clk 0:00:51]} 29. Kxd1 {[%clk 0:00:49]}  Rd8 {[%clk 0:00:51]} 30. Kc2 {[%clk 0:00:42]}  Rxd3 {[%clk 0:00:44]} 31. Kxd3 {[%clk 0:00:41]}  Qxb2 {[%clk 0:00:44]} 32. Rc1 {[%clk 0:00:20]}  Rd8+ {[%clk 0:00:41]} 33. Ke3 {[%clk 0:00:20]}  Bd4+ {[%clk 0:00:40]} 34. Ke4 {[%clk 0:00:17]}  Qxf2 {[%clk 0:00:37]} 35. Bd7 {[%clk 0:00:08]}  Qe3+ {[%clk 0:00:27]} 36. Kd5 {[%clk 0:00:08]}  Bb2 {[%clk 0:00:27]} 37. Rc2 {[%clk 0:00:06]}  Qd4# {[%clk 0:00:26]} 0-1


[Site "https://www.chess.com"]